[Event "European Women's Chess Championship (1-48)"]
[Site "Batumi, Georgia"]
[Date "2026.05.25"]
[Round "1.37"]
[White "Iglesias, Yosha"]
[Black "Nenova, Andzhelika"]
[Result "1/2-1/2"]
[TimeControl "90min/ 40moves+ 30min+ 30-sec increment from move 1"]
[WhiteTitle "-"]
[BlackTitle "-"]
[WhiteFideId "637823"]
[BlackFideId "2939355"]
[WhiteElo "2325"]
[BlackElo "2072"]

1. d4 {[%clk 01:30:56]} {[%emt 00:00:02]} d5 {[%clk 01:30:47]} {[%emt
00:00:14]} 2. Nf3 {[%clk 01:30:41]} {[%emt 00:00:44]} Nf6 {[%clk 01:31:08]}
{[%emt 00:00:10]} 3. Bf4 {[%clk 01:31:05]} {[%emt 00:00:06]} Bf5 {[%clk
01:31:11]} {[%emt 00:00:27]} 4. c4 {[%clk 01:27:50]} {[%emt 00:03:45]} e6
{[%clk 01:30:58]} {[%emt 00:00:44]} 5. Nc3 {[%clk 01:26:04]} {[%emt 00:02:16]}
Nc6 {[%clk 01:18:51]} {[%emt 00:12:36]} 6. e3 {[%clk 01:24:26]} {[%emt
00:02:07]} Bb4 {[%clk 01:15:58]} {[%emt 00:03:23]} 7. Rc1 {[%clk 01:12:46]}
{[%emt 00:12:10]} Ne4 {[%clk 01:09:40]} {[%emt 00:06:49]} 8. cxd5 {[%clk
01:10:03]} {[%emt 00:03:14]} exd5 {[%clk 01:08:32]} {[%emt 00:01:38]} 9. Bd3
{[%clk 01:10:04]} {[%emt 00:00:28]} O-O {[%clk 01:00:31]} {[%emt 00:08:31]} 10.
O-O {[%clk 01:10:06]} {[%emt 00:00:27]} Bxc3 {[%clk 00:53:18]} {[%emt
00:07:44]} 11. bxc3 {[%clk 01:10:29]} {[%emt 00:00:07]} Ne7 {[%clk 00:53:42]}
{[%emt 00:00:06]} 12. Nh4 {[%clk 01:03:02]} {[%emt 00:07:57]} Be6 {[%clk
00:47:12]} {[%emt 00:07:00]} 13. f3 {[%clk 00:48:03]} {[%emt 00:15:28]} Nd6
{[%clk 00:46:32]} {[%emt 00:01:10]} 14. e4 {[%clk 00:40:23]} {[%emt 00:08:11]}
c6 {[%clk 00:42:31]} {[%emt 00:04:31]} 15. Bxd6 {[%clk 00:32:36]} {[%emt
00:08:17]} Qxd6 {[%clk 00:42:55]} {[%emt 00:00:06]} 16. e5 {[%clk 00:32:47]}
{[%emt 00:00:18]} Qd7 {[%clk 00:32:21]} {[%emt 00:11:04]} 17. f4 {[%clk
00:27:46]} {[%emt 00:05:32]} Ng6 {[%clk 00:22:14]} {[%emt 00:10:37]} 18. Qe1
{[%clk 00:21:22]} {[%emt 00:06:53]} Qd8 {[%clk 00:12:19]} {[%emt 00:10:26]} 19.
f5 {[%clk 00:10:18]} {[%emt 00:11:34]} Nxh4 {[%clk 00:10:15]} {[%emt 00:02:34]}
20. fxe6 {[%clk 00:10:42]} {[%emt 00:00:06]} fxe6 {[%clk 00:05:27]} {[%emt
00:05:18]} 21. Bxh7+ {[%clk 00:05:22]} {[%emt 00:05:49]} Kxh7 {[%clk 00:05:33]}
{[%emt 00:00:25]} 22. Rxf8 {[%clk 00:05:43]} {[%emt 00:00:09]} Qxf8 {[%clk
00:05:47]} {[%emt 00:00:16]} 23. Qxh4+ {[%clk 00:06:00]} {[%emt 00:00:14]} Kg8
{[%emt 00:00:29]} 24. Rf1 {[%clk 00:06:07]} Qa3 {[%clk 00:03:39]} {[%emt
00:03:00]} 25. Qg4 {[%clk 00:05:06]} {[%emt 00:01:31]} Re8 {[%clk 00:03:42]}
{[%emt 00:00:28]} 26. Qh5 {[%clk 00:05:20]} {[%emt 00:00:17]} Rf8 {[%clk
00:02:29]} {[%emt 00:01:42]} 27. Rxf8+ {[%clk 00:05:35]} {[%emt 00:00:15]} Qxf8
{[%clk 00:02:47]} {[%emt 00:00:12]} 28. Qg6 {[%clk 00:04:47]} {[%emt 00:01:18]}
Qe7 {[%clk 00:00:36]} {[%emt 00:02:41]} 29. g4 {[%clk 00:03:22]} {[%emt
00:01:55]} c5 {[%clk 00:00:32]} {[%emt 00:00:35]} 30. h4 {[%clk 00:01:38]}
{[%emt 00:02:13]} cxd4 {[%clk 00:00:53]} {[%emt 00:00:10]} 31. cxd4 {[%clk
00:02:04]} {[%emt 00:00:04]} Qxh4 {[%clk 00:00:41]} {[%emt 00:00:42]} 32. Qxe6+
{[%clk 00:02:28]} {[%emt 00:00:05]} Kh7 {[%clk 00:00:40]} {[%emt 00:00:31]} 33.
Qf5+ {[%clk 00:02:42]} {[%emt 00:00:16]} Kg8 {[%clk 00:00:40]} {[%emt
00:00:30]} 34. Kg2 {[%clk 00:02:54]} {[%emt 00:00:19]} Qe1 {[%clk 00:00:33]}
{[%emt 00:00:37]} 35. Qe6+ {[%clk 00:02:58]} {[%emt 00:00:25]} Kh7 {[%clk
00:00:55]} {[%emt 00:00:07]} 36. Qf5+ {[%clk 00:01:23]} {[%emt 00:02:06]} Kg8
{[%clk 00:01:03]} {[%emt 00:00:21]} 37. Qe6+ {[%clk 00:00:49]} {[%emt
00:01:05]} Kh7 {[%clk 00:01:32]} 38. Qxd5 {[%clk 00:00:43]} {[%emt 00:00:37]}
Qe2+ {[%clk 00:01:38]} {[%emt 00:00:24]} 39. Kg3 {[%clk 00:01:06]} {[%emt
00:00:07]} Qe3+ {[%clk 00:01:47]} {[%emt 00:00:20]} 40. Qf3 {[%clk 00:00:38]}
{[%emt 00:00:58]} Qxd4 {[%clk 00:01:30]} {[%emt 00:00:48]} 41. Qf5+ {[%clk
00:28:44]} {[%emt 00:02:24]} Kg8 {[%clk 00:29:04]} {[%emt 00:02:53]} 42. Kh4
{[%clk 00:23:09]} {[%emt 00:06:06]} Qe3 {[%clk 00:26:18]} {[%emt 00:03:16]} 43.
Qe6+ {[%clk 00:17:04]} {[%emt 00:06:35]} Kh7 {[%clk 00:26:06]} {[%emt
00:00:42]} 44. Qf5+ {[%clk 00:17:05]} {[%emt 00:00:29]} Kg8 {[%clk 00:26:30]}
{[%emt 00:00:07]} 45. Qe6+ {[%clk 00:15:47]} {[%emt 00:01:47]} 1/2-1/2

[Event "European Women's Chess Championship (1-48)"]
[Site "Batumi, Georgia"]
[Date "2026.05.25"]
[Round "1.38"]
[White "Subramanian, Anusha"]
[Black "Toncheva, Nadya"]
[Result "1/2-1/2"]
[TimeControl "90min/ 40moves+ 30min+ 30-sec increment from move 1"]
[WhiteTitle "-"]
[BlackTitle "-"]
[WhiteFideId "477710"]
[BlackFideId "2924056"]
[WhiteElo "2068"]
[BlackElo "2320"]

1. d4 {[%clk 01:30:57]} {[%emt 00:00:03]} d5 {[%clk 01:30:52]} {[%emt
00:00:07]} 2. c4 {[%clk 01:31:21]} {[%emt 00:00:06]} c6 {[%clk 01:28:51]}
{[%emt 00:02:31]} 3. cxd5 {[%clk 01:31:44]} {[%emt 00:00:07]} cxd5 {[%clk
01:29:16]} {[%emt 00:00:06]} 4. Bf4 {[%clk 01:32:07]} {[%emt 00:00:06]} Nc6
{[%clk 01:29:07]} {[%emt 00:00:39]} 5. e3 {[%clk 01:32:31]} {[%emt 00:00:07]}
Bf5 {[%clk 01:25:16]} {[%emt 00:04:21]} 6. Bd3 {[%clk 01:31:17]} {[%emt
00:01:44]} Bxd3 {[%clk 01:24:02]} {[%emt 00:01:43]} 7. Qxd3 {[%clk 01:31:40]}
{[%emt 00:00:07]} e6 {[%clk 01:21:21]} {[%emt 00:03:11]} 8. Nc3 {[%clk
01:31:18]} {[%emt 00:00:52]} Nf6 {[%clk 01:21:07]} {[%emt 00:00:44]} 9. Nge2
{[%clk 01:23:43]} {[%emt 00:08:06]} Be7 {[%clk 01:16:45]} {[%emt 00:04:52]} 10.
O-O {[%clk 01:23:44]} {[%emt 00:00:29]} O-O {[%clk 01:13:24]} {[%emt 00:03:51]}
11. f3 {[%clk 01:15:45]} {[%emt 00:08:28]} Rc8 {[%clk 01:07:48]} {[%emt
00:06:06]} 12. Rac1 {[%clk 01:12:39]} {[%emt 00:03:37]} a6 {[%clk 00:58:32]}
{[%emt 00:09:46]} 13. Rfd1 {[%clk 01:02:35]} {[%emt 00:10:34]} b5 {[%clk
00:54:17]} {[%emt 00:04:49]} 14. a4 {[%clk 00:45:46]} {[%emt 00:17:14]} b4
{[%clk 00:46:40]} {[%emt 00:08:07]} 15. Nb1 {[%clk 00:45:09]} {[%emt 00:01:07]}
Qb6 {[%clk 00:46:57]} {[%emt 00:00:13]} 16. Nd2 {[%clk 00:43:53]} {[%emt
00:01:46]} Na5 {[%clk 00:42:44]} {[%emt 00:04:43]} 17. b3 {[%clk 00:39:13]}
{[%emt 00:05:10]} Nh5 {[%clk 00:38:38]} {[%emt 00:04:35]} 18. Bg3 {[%clk
00:33:31]} {[%emt 00:06:13]} f5 {[%clk 00:34:35]} {[%emt 00:04:33]} 19. Be5
{[%clk 00:29:54]} {[%emt 00:04:07]} Nc6 {[%clk 00:32:01]} {[%emt 00:03:04]} 20.
f4 {[%clk 00:22:03]} {[%emt 00:08:21]} g5 {[%clk 00:23:11]} {[%emt 00:09:20]}
21. Nf3 {[%clk 00:16:00]} {[%emt 00:06:33]} g4 {[%clk 00:20:57]} {[%emt
00:02:44]} 22. Ne1 {[%clk 00:12:26]} {[%emt 00:04:03]} Nxe5 {[%clk 00:18:14]}
{[%emt 00:03:14]} 23. dxe5 {[%clk 00:10:37]} {[%emt 00:02:20]} Bc5 {[%clk
00:14:57]} {[%emt 00:03:46]} 24. Nc2 {[%clk 00:10:15]} {[%emt 00:00:52]} Rc7
{[%clk 00:15:16]} {[%emt 00:00:11]} 25. Ncd4 {[%clk 00:06:08]} {[%emt
00:04:37]} Rfc8 {[%clk 00:14:11]} {[%emt 00:01:35]} 26. Qd2 {[%clk 00:04:12]}
{[%emt 00:02:25]} Bxd4 {[%clk 00:08:02]} {[%emt 00:06:40]} 27. exd4 {[%clk
00:04:17]} {[%emt 00:00:25]} Kf7 {[%clk 00:07:13]} {[%emt 00:01:19]} 28. Rxc7+
{[%clk 00:03:48]} {[%emt 00:00:59]} Rxc7 {[%clk 00:07:34]} {[%emt 00:00:09]} 29.
Rc1 {[%clk 00:03:59]} {[%emt 00:00:19]} a5 {[%clk 00:06:10]} {[%emt 00:01:54]}
30. g3 {[%clk 00:03:47]} {[%emt 00:00:42]} Ng7 {[%clk 00:06:23]} {[%emt
00:00:17]} 31. Kf2 {[%clk 00:03:41]} {[%emt 00:00:36]} Ne8 {[%clk 00:06:26]}
{[%emt 00:00:27]} 32. Rxc7+ {[%clk 00:02:58]} {[%emt 00:01:14]} Qxc7 {[%clk
00:03:45]} {[%emt 00:03:10]} 33. Qc1 {[%clk 00:03:20]} {[%emt 00:00:08]} Qxc1
{[%clk 00:02:13]} {[%emt 00:02:02]} 34. Nxc1 {[%clk 00:03:48]} {[%emt
00:00:02]} Nc7 {[%clk 00:02:36]} {[%emt 00:00:07]} 35. Nd3 {[%clk 00:04:06]}
{[%emt 00:00:13]} Na6 {[%clk 00:03:00]} {[%emt 00:00:05]} 36. Ke3 {[%clk
00:04:25]} {[%emt 00:00:11]} Ke7 {[%clk 00:03:24]} {[%emt 00:00:06]} 37. Nf2
{[%clk 00:03:20]} {[%emt 00:01:35]} Nb8 {[%clk 00:03:02]} {[%emt 00:00:53]} 38.
Nd3 {[%clk 00:03:40]} {[%emt 00:00:09]} Na6 {[%clk 00:03:27]} {[%emt 00:00:05]}
39. Nf2 {[%clk 00:04:05]} {[%emt 00:00:05]} Nb8 {[%clk 00:03:53]} {[%emt
00:00:04]} 1/2-1/2

[Event "European Women's Chess Championship (1-48)"]
[Site "Batumi, Georgia"]
[Date "2026.05.25"]
[Round "1.39"]
[White "Avramidou, Anastasia"]
[Black "Krkyasharyan, Sona"]
[Result "1/2-1/2"]
[TimeControl "90min/ 40moves+ 30min+ 30-sec increment from move 1"]
[WhiteTitle "-"]
[BlackTitle "-"]
[WhiteFideId "4239873"]
[BlackFideId "13316729"]
[WhiteElo "2320"]
[BlackElo "2063"]

1. e4 {[%clk 01:30:56]} {[%emt 00:00:03]} c5 {[%clk 01:30:53]} {[%emt
00:00:06]} 2. Nc3 {[%clk 01:31:18]} {[%emt 00:00:09]} d6 {[%clk 01:31:17]}
{[%emt 00:00:06]} 3. d4 {[%clk 01:31:41]} {[%emt 00:00:08]} cxd4 {[%clk
01:31:42]} {[%emt 00:00:05]} 4. Qxd4 {[%clk 01:32:04]} {[%emt 00:00:06]} Nc6
{[%clk 01:32:08]} {[%emt 00:00:04]} 5. Qd2 {[%clk 01:32:24]} {[%emt 00:00:10]}
Nf6 {[%clk 01:32:31]} {[%emt 00:00:07]} 6. b3 {[%clk 01:32:39]} {[%emt
00:00:15]} e6 {[%clk 01:32:55]} {[%emt 00:00:05]} 7. Bb2 {[%clk 01:33:05]}
{[%emt 00:00:05]} d5 {[%clk 01:33:20]} {[%emt 00:00:06]} 8. exd5 {[%clk
01:33:28]} {[%emt 00:00:06]} exd5 {[%clk 01:33:46]} {[%emt 00:00:04]} 9. O-O-O
{[%clk 01:33:49]} {[%emt 00:00:09]} Be6 {[%clk 01:34:12]} {[%emt 00:00:04]} 10.
Bb5 {[%clk 01:34:13]} {[%emt 00:00:06]} Qa5 {[%clk 01:34:08]} {[%emt 00:00:35]}
11. Nge2 {[%clk 01:22:26]} {[%emt 00:12:15]} Bb4 {[%clk 01:34:12]} {[%emt
00:00:27]} 12. Qg5 {[%clk 01:21:12]} {[%emt 00:01:44]} O-O-O {[%clk 01:28:34]}
{[%emt 00:06:08]} 13. Bxc6 {[%clk 01:11:54]} {[%emt 00:09:48]} bxc6 {[%clk
01:26:38]} {[%emt 00:02:26]} 14. f3 {[%clk 01:12:17]} {[%emt 00:00:07]} Rhg8
{[%clk 01:17:01]} {[%emt 00:10:07]} 15. Kb1 {[%clk 01:01:00]} {[%emt 00:11:47]}
h6 {[%clk 01:14:50]} {[%emt 00:02:41]} 16. Qg3 {[%clk 00:57:17]} {[%emt
00:04:13]} Kb7 {[%clk 01:08:47]} {[%emt 00:06:33]} 17. Na4 {[%clk 00:46:36]}
{[%emt 00:11:11]} Bd6 {[%clk 01:02:11]} {[%emt 00:07:05]} 18. Qf2 {[%clk
00:46:59]} {[%emt 00:00:08]} c5 {[%clk 00:56:48]} {[%emt 00:05:53]} 19. Nc1
{[%clk 00:41:06]} {[%emt 00:06:23]} d4 {[%clk 00:48:35]} {[%emt 00:08:44]} 20.
c3 {[%clk 00:38:42]} {[%emt 00:02:53]} Bf5+ {[%clk 00:44:20]} {[%emt 00:04:45]}
21. Ka1 {[%clk 00:39:04]} {[%emt 00:00:09]} Bd7 {[%clk 00:44:44]} {[%emt
00:00:06]} 22. cxd4 {[%clk 00:26:09]} {[%emt 00:13:25]} Bxa4 {[%clk 00:45:08]}
{[%emt 00:00:06]} 23. bxa4 {[%clk 00:26:35]} {[%emt 00:00:04]} Qxa4 {[%clk
00:45:10]} {[%emt 00:00:28]} 24. dxc5 {[%clk 00:20:29]} {[%emt 00:06:35]} Bxc5
{[%clk 00:45:18]} {[%emt 00:00:22]} 25. Qxc5 {[%clk 00:14:02]} {[%emt
00:06:57]} Rxd1 {[%clk 00:45:40]} 26. Rxd1 {[%clk 00:14:29]} {[%emt 00:00:11]}
Qxd1 {[%clk 00:46:02]} {[%emt 00:00:08]} 27. Qb5+ {[%clk 00:14:56]} {[%emt
00:00:03]} Kc8 {[%clk 00:45:54]} {[%emt 00:00:37]} 28. Qc5+ {[%clk 00:06:42]}
{[%emt 00:08:45]} Kb7 {[%clk 00:44:25]} {[%emt 00:01:59]} 29. Qb5+ {[%clk
00:06:59]} {[%emt 00:00:13]} Kc8 {[%clk 00:44:49]} {[%emt 00:00:05]} 30. Qc5+
{[%emt 00:00:21]} Kd7 {[%clk 00:34:35]} {[%emt 00:10:42]} 31. Qb5+ {[%clk
00:07:35]} {[%emt 00:00:06]} Ke6 {[%clk 00:33:11]} {[%emt 00:01:54]} 32. Qe5+
{[%clk 00:07:57]} {[%emt 00:00:08]} Kd7 {[%clk 00:33:31]} {[%emt 00:00:10]} 33.
Qb5+ {[%clk 00:08:22]} {[%emt 00:00:05]} Kc8 {[%clk 00:31:42]} {[%emt
00:02:20]} 1/2-1/2

[Event "European Women's Chess Championship (1-48)"]
[Site "Batumi, Georgia"]
[Date "2026.05.25"]
[Round "1.40"]
[White "Akat, Elifnaz"]
[Black "Kazarian, Anna-Maja"]
[Result "0-1"]
[TimeControl "90min/ 40moves+ 30min+ 30-sec increment from move 1"]
[WhiteTitle "-"]
[BlackTitle "-"]
[WhiteFideId "34560556"]
[BlackFideId "1033689"]
[WhiteElo "2061"]
[BlackElo "2317"]

1. e4 {[%clk 01:30:57]} {[%emt 00:00:02]} e6 {[%clk 01:30:56]} {[%emt
00:00:05]} 2. d4 {[%clk 01:31:24]} {[%emt 00:00:03]} d5 {[%clk 01:31:23]}
{[%emt 00:00:03]} 3. Nd2 {[%clk 01:31:49]} {[%emt 00:00:05]} c5 {[%clk
01:31:44]} {[%emt 00:00:09]} 4. Ngf3 {[%clk 01:31:50]} {[%emt 00:00:29]} cxd4
{[%clk 01:31:01]} {[%emt 00:01:13]} 5. Nxd4 {[%clk 01:31:40]} {[%emt 00:00:40]}
Nc6 {[%clk 01:31:19]} {[%emt 00:00:13]} 6. Bb5 {[%clk 01:31:56]} {[%emt
00:00:13]} Bd7 {[%clk 01:31:16]} {[%emt 00:00:34]} 7. Nxc6 {[%clk 01:32:21]}
{[%emt 00:00:05]} bxc6 {[%clk 01:31:40]} {[%emt 00:00:05]} 8. Bd3 {[%clk
01:32:50]} {[%emt 00:00:02]} Qc7 {[%clk 01:29:58]} {[%emt 00:02:12]} 9. Qe2
{[%clk 01:32:40]} {[%emt 00:00:39]} Bd6 {[%clk 01:28:01]} {[%emt 00:02:27]} 10.
Nf3 {[%clk 01:32:59]} {[%emt 00:00:10]} e5 {[%clk 01:24:46]} {[%emt 00:03:47]}
11. exd5 {[%clk 01:28:16]} {[%emt 00:05:13]} cxd5 {[%clk 01:17:57]} {[%emt
00:07:19]} 12. c4 {[%clk 01:19:23]} {[%emt 00:09:22]} dxc4 {[%clk 01:04:51]}
{[%emt 00:13:36]} 13. Bxc4 {[%clk 01:18:36]} {[%emt 00:01:17]} Rc8 {[%clk
01:02:19]} {[%emt 00:03:03]} 14. b3 {[%clk 01:15:13]} {[%emt 00:03:53]} Ne7
{[%clk 01:02:12]} {[%emt 00:00:35]} 15. Ng5 {[%clk 01:08:28]} {[%emt 00:07:15]}
Bb4+ {[%clk 00:59:21]} {[%emt 00:03:22]} 16. Bd2 {[%clk 01:05:01]} {[%emt
00:03:57]} Bxd2+ {[%clk 00:59:43]} {[%emt 00:00:08]} 17. Qxd2 {[%clk 01:05:29]}
{[%emt 00:00:02]} O-O {[%clk 00:59:07]} {[%emt 00:01:06]} 18. O-O {[%clk
01:05:08]} {[%emt 00:00:50]} h6 {[%clk 00:58:24]} {[%emt 00:01:14]} 19. Ne4
{[%clk 01:05:30]} {[%emt 00:00:07]} Bc6 {[%clk 00:57:22]} {[%emt 00:01:39]} 20.
Rfe1 {[%clk 01:00:21]} {[%emt 00:05:33]} Rcd8 {[%clk 00:50:59]} {[%emt
00:06:53]} 21. Qc3 {[%clk 00:55:24]} {[%emt 00:05:26]} Rd4 {[%clk 00:39:59]}
{[%emt 00:11:30]} 22. Rac1 {[%clk 00:52:37]} {[%emt 00:03:17]} Qd7 {[%clk
00:35:39]} {[%emt 00:04:52]} 23. Nc5 {[%clk 00:45:38]} {[%emt 00:07:29]} Qf5
{[%clk 00:34:56]} {[%emt 00:01:13]} 24. Qe3 {[%clk 00:35:17]} {[%emt 00:10:50]}
Qg6 {[%clk 00:30:13]} {[%emt 00:05:13]} 25. f3 {[%clk 00:31:59]} {[%emt
00:03:47]} Rfd8 {[%clk 00:24:49]} {[%emt 00:05:55]} 26. Qxe5 {[%clk 00:28:01]}
{[%emt 00:04:28]} Rd2 {[%clk 00:20:41]} {[%emt 00:04:39]} 27. Qg3 {[%clk
00:23:29]} {[%emt 00:05:02]} Qf6 {[%clk 00:14:27]} {[%emt 00:06:44]} 28. Ne4
{[%clk 00:17:46]} {[%emt 00:06:13]} Qd4+ {[%clk 00:14:22]} {[%emt 00:00:34]} 29.
Kh1 {[%emt 00:02:01]} Nf5 {[%clk 00:13:20]} 30. Qc7 {[%clk 00:11:48]} {[%emt
00:06:29]} Bxe4 {[%clk 00:10:22]} {[%emt 00:03:28]} 31. Qxf7+ {[%clk 00:08:13]}
{[%emt 00:04:05]} Kh8 {[%clk 00:10:47]} {[%emt 00:00:06]} 32. fxe4 {[%clk
00:08:26]} {[%emt 00:00:16]} Nh4 {[%clk 00:07:49]} {[%emt 00:03:29]} 33. Bf1
{[%clk 00:06:54]} {[%emt 00:02:01]} Rf2 {[%clk 00:05:41]} {[%emt 00:02:38]} 34.
Qc7 {[%clk 00:05:42]} {[%emt 00:01:41]} Rdf8 {[%clk 00:04:22]} {[%emt
00:01:50]} 35. Qg3 {[%clk 00:05:04]} {[%emt 00:01:08]} Qf6 {[%clk 00:02:03]}
{[%emt 00:02:49]} 36. h3 {[%clk 00:04:22]} {[%emt 00:01:12]} Rxa2 {[%clk
00:01:18]} {[%emt 00:01:15]} 37. Be2 {[%clk 00:02:36]} {[%emt 00:02:16]} Qf2
{[%clk 00:00:52]} {[%emt 00:00:57]} 38. Kh2 {[%clk 00:01:50]} {[%emt 00:01:16]}
Rxe2 {[%clk 00:00:38]} {[%emt 00:00:44]} 39. Rxe2 {[%clk 00:01:15]} {[%emt
00:01:05]} Qxe2 {[%clk 00:00:42]} {[%emt 00:00:25]} 40. Qxh4 {[%clk 00:01:42]}
{[%emt 00:00:03]} Qe3 {[%clk 00:00:41]} {[%emt 00:00:32]} 41. Rc7 {[%clk
00:00:40]} {[%emt 00:01:31]} Rf1 {[%clk 00:27:27]} {[%emt 00:03:44]} 42. Qg4
{[%clk 00:26:11]} {[%emt 00:04:59]} Qg1+ {[%clk 00:27:28]} {[%emt 00:00:29]} 43.
Kg3 {[%clk 00:26:37]} {[%emt 00:00:03]} Qf2+ {[%clk 00:27:53]} {[%emt
00:00:06]} 44. Kh2 {[%clk 00:27:02]} {[%emt 00:00:05]} Qg1+ {[%clk 00:24:14]}
{[%emt 00:04:10]} 45. Kg3 {[%clk 00:27:29]} {[%emt 00:00:03]} Qd4 {[%clk
00:23:21]} {[%emt 00:01:23]} 46. Rc8+ {[%clk 00:22:35]} {[%emt 00:05:23]} Kh7
{[%clk 00:23:33]} {[%emt 00:00:18]} 47. Re8 {[%clk 00:22:22]} {[%emt 00:00:42]}
Qf2+ {[%clk 00:19:29]} {[%emt 00:04:35]} 48. Kh2 {[%clk 00:22:50]} {[%emt
00:00:02]} Qg1+ {[%clk 00:19:54]} {[%emt 00:00:06]} 49. Kg3 {[%clk 00:23:16]}
{[%emt 00:00:03]} Rf2 {[%clk 00:20:06]} {[%emt 00:00:19]} 50. Kh4 {[%clk
00:19:40]} {[%emt 00:04:05]} Rf4 {[%clk 00:19:42]} {[%emt 00:00:54]} 51. Qxf4
{[%clk 00:20:03]} {[%emt 00:00:07]} g5+ {[%clk 00:20:08]} {[%emt 00:00:04]} 52.
Qxg5 {[%clk 00:20:25]} {[%emt 00:00:08]} hxg5+ {[%clk 00:20:34]} {[%emt
00:00:04]} 53. Kxg5 {[%clk 00:20:49]} {[%emt 00:00:06]} Qxg2+ {[%clk 00:20:42]}
{[%emt 00:00:22]} 54. Kf4 {[%clk 00:21:15]} {[%emt 00:00:04]} Qf1+ {[%clk
00:19:10]} {[%emt 00:02:02]} 55. Kg4 {[%clk 00:20:28]} {[%emt 00:01:15]} Qd1+
{[%clk 00:17:52]} {[%emt 00:01:50]} 56. Kf4 {[%clk 00:20:35]} {[%emt 00:00:19]}
Qxb3 {[%clk 00:17:59]} {[%emt 00:00:27]} 57. Re7+ {[%clk 00:19:41]} {[%emt
00:01:24]} Kg6 {[%clk 00:18:23]} {[%emt 00:00:06]} 58. h4 {[%clk 00:18:08]}
{[%emt 00:02:03]} Qb8+ {[%clk 00:16:46]} {[%emt 00:02:08]} 59. Kg4 {[%clk
00:17:18]} {[%emt 00:01:19]} Kf6 {[%clk 00:17:07]} {[%emt 00:00:09]} 0-1

[Event "European Women's Chess Championship (1-48)"]
[Site "Batumi, Georgia"]
[Date "2026.05.25"]
[Round "1.41"]
[White "Sliwicka, Alicja"]
[Black "Dimitrijevic, Aleksandra"]
[Result "1-0"]
[TimeControl "90min/ 40moves+ 30min+ 30-sec increment from move 1"]
[WhiteTitle "-"]
[BlackTitle "-"]
[WhiteFideId "1150677"]
[BlackFideId "929239"]
[WhiteElo "2315"]
[BlackElo "2059"]

1. e4 {[%clk 01:30:58]} {[%emt 00:00:01]} c5 {[%clk 01:30:56]} {[%emt
00:00:05]} 2. Nf3 {[%clk 01:31:22]} {[%emt 00:00:05]} e6 {[%clk 01:31:16]}
{[%emt 00:00:09]} 3. d4 {[%clk 01:31:47]} {[%emt 00:00:07]} cxd4 {[%clk
01:31:41]} {[%emt 00:00:04]} 4. Nxd4 {[%clk 01:32:12]} {[%emt 00:00:05]} Nc6
{[%clk 01:32:01]} {[%emt 00:00:10]} 5. Nc3 {[%clk 01:32:35]} {[%emt 00:00:08]}
d6 {[%clk 01:32:24]} {[%emt 00:00:07]} 6. Be3 {[%clk 01:32:44]} {[%emt
00:00:20]} Nge7 {[%clk 01:28:00]} {[%emt 00:04:54]} 7. h4 {[%clk 01:32:25]}
{[%emt 00:00:49]} Nxd4 {[%clk 01:22:37]} {[%emt 00:05:53]} 8. Qxd4 {[%clk
01:29:22]} {[%emt 00:03:33]} Nc6 {[%clk 01:22:38]} {[%emt 00:00:29]} 9. Qd2
{[%clk 01:28:14]} {[%emt 00:01:37]} Be7 {[%clk 01:20:27]} {[%emt 00:02:42]} 10.
O-O-O {[%clk 01:20:03]} {[%emt 00:08:41]} a6 {[%clk 01:12:26]} {[%emt
00:08:31]} 11. Bg5 {[%clk 01:16:56]} {[%emt 00:03:36]} f6 {[%clk 01:10:39]}
{[%emt 00:02:17]} 12. Bf4 {[%clk 01:10:41]} {[%emt 00:06:46]} Ne5 {[%clk
01:10:44]} {[%emt 00:00:25]} 13. Bg3 {[%clk 01:09:44]} {[%emt 00:01:28]} b5
{[%clk 01:05:18]} {[%emt 00:05:55]} 14. f4 {[%clk 01:06:34]} {[%emt 00:03:39]}
Nf7 {[%clk 01:05:02]} {[%emt 00:00:47]} 15. Bd3 {[%clk 01:03:19]} {[%emt
00:03:45]} b4 {[%clk 00:52:55]} {[%emt 00:12:37]} 16. Ne2 {[%clk 01:02:08]}
{[%emt 00:01:41]} d5 {[%clk 00:44:58]} {[%emt 00:08:27]} 17. Nd4 {[%clk
01:00:04]} {[%emt 00:02:33]} Bc5 {[%clk 00:32:59]} {[%emt 00:12:30]} 18. Nb3
{[%clk 00:58:25]} {[%emt 00:02:08]} Be7 {[%clk 00:31:31]} {[%emt 00:01:59]} 19.
exd5 {[%clk 00:58:18]} {[%emt 00:00:37]} Qxd5 {[%clk 00:31:55]} {[%emt
00:00:06]} 20. Qe2 {[%clk 00:55:43]} {[%emt 00:03:04]} Ra7 {[%clk 00:25:40]}
{[%emt 00:06:45]} 21. Bc4 {[%clk 00:51:10]} {[%emt 00:05:03]} Qa8 {[%clk
00:22:41]} {[%emt 00:03:30]} 22. Nd4 {[%clk 00:50:13]} {[%emt 00:01:27]} O-O
{[%clk 00:22:02]} {[%emt 00:01:08]} 23. Nxe6 {[%clk 00:49:32]} {[%emt
00:01:12]} Bxe6 {[%clk 00:21:30]} {[%emt 00:01:01]} 24. Bxe6 {[%clk 00:49:46]}
{[%emt 00:00:16]} Bc5 {[%clk 00:19:14]} {[%emt 00:02:47]} 25. Rhe1 {[%clk
00:45:33]} {[%emt 00:04:42]} Kh8 {[%clk 00:18:38]} {[%emt 00:01:06]} 26. f5
{[%clk 00:39:35]} {[%emt 00:06:28]} Ne5 {[%clk 00:16:31]} {[%emt 00:02:38]} 27.
Bxe5 {[%clk 00:38:07]} {[%emt 00:01:57]} fxe5 {[%clk 00:15:58]} {[%emt
00:01:03]} 28. Qxe5 {[%clk 00:38:05]} {[%emt 00:00:33]} Be7 {[%clk 00:15:25]}
{[%emt 00:01:02]} 29. Re4 {[%clk 00:29:54]} {[%emt 00:08:41]} a5 {[%clk
00:14:39]} {[%emt 00:01:16]} 30. Qd5 {[%clk 00:27:31]} {[%emt 00:02:54]} Rb7
{[%clk 00:11:38]} {[%emt 00:03:31]} 31. Bd7 {[%clk 00:21:52]} {[%emt 00:06:09]}
Rxd7 {[%clk 00:06:26]} {[%emt 00:05:41]} 32. Qxa8 {[%clk 00:22:09]} Rxd1+
{[%clk 00:06:53]} {[%emt 00:00:16]} 33. Kxd1 {[%clk 00:22:30]} {[%emt
00:00:09]} Rxa8 {[%clk 00:07:21]} {[%emt 00:00:02]} 34. Rxe7 {[%clk 00:22:50]}
{[%emt 00:00:10]} 1-0